fUST/lending_fUST_20240119
["ID","MTS","AMOUNT","RATE_DAILY","PERIOD"]
[312089808,1705609835358,-2084.34070549,0.00035615,4]
[312089809,1705609835368,-450.584957,0.00035616,120]
[312089810,1705609835378,-161.523704,0.0003589,2]
[312089811,1705609835388,-280.0,0.00036298,15]
[312089812,1705609835400,-155.0,0.00037,2]
[312089813,1705609835409,-154.26436595,0.00037069,7]
[312089814,1705609835419,-152.92708946,0.00037233,7]
[312089815,1705609835428,-154.26436595,0.00037412,7]
[312089816,1705609835437,-4524.1727615,0.00037616,4]
[312089817,1705609835447,-155.79751346,0.000379,2]
[312089818,1705609835457,-152.23084,0.00037902,2]
[312089819,1705609835466,-152.23084,0.00037902,2]
[312089820,1705609835475,-10723.61,0.00037966,3]
[312089821,1705609835485,-331.0,0.0003797,30]
[312089822,1705609835494,-12868.33,0.00037976,3]
[312089823,1705609835503,-331.0,0.0003798,30]
[312089824,1705609835512,-15442.0,0.00037986,3]
[312089825,1705609835522,-160.93,0.0003799,30]
[312089826,1705609835532,-331.0,0.0003799,30]
[312089827,1705609835541,-500.0,0.00037995,2]
[312089828,1705609835551,-500.0,0.00037995,2]
[312089829,1705609835560,-436.72352645,0.00037995,2]
[312089830,1705609835570,-278.61236444,0.00037995,2]
[312089831,1705609835580,-208.80538298,0.00037995,2]
[312089832,1705609835590,-569.16406743,0.00037995,2]
[312089833,1705609835600,-500.0,0.00037995,2]
[312089834,1705609835609,-500.0,0.00037995,2]
[312089835,1705609835619,-500.0,0.00037995,2]
[312089836,1705609835628,-330.70774578,0.00037995,2]
[312089837,1705609835639,-500.0,0.00037995,2]
[312089838,1705609835653,-250.61808958,0.00037996,4]
[312089840,1705609835664,-2951.42901742,0.00037996,4]
[312089841,1705609835673,-594.07215949,0.00037996,4]
[312089842,1705609835683,-2176.85941571,0.00037996,4]
[312089843,1705609835692,-258.65098072,0.00037996,4]
[312089844,1705609835702,-1536.90257432,0.00037996,4]
[312089874,1705609838125,-288.79646793,0.00036096,4]
[312089875,1705609838135,-122.06353207,0.00037996,4]
[312089876,1705609838147,-3644.85296452,0.00037996,4]
[312089877,1705609838156,-154.95351395,0.00037996,4]
[312089878,1705609838165,-569.88082184,0.00037996,4]
[312089879,1705609838174,-641.55706452,0.00037996,4]
[312089880,1705609838183,-8961.85654012,0.00037996,4]
[312089881,1705609838192,-222.27499817,0.00037996,4]
[312089882,1705609838202,-309.02199999,0.00037996,4]
[312089883,1705609838211,-200.98315984,0.00037996,4]
[312089884,1705609838221,-331.52516909,0.00037996,4]
[312089885,1705609838230,-237.70431469,0.00037996,4]
[312089887,1705609838239,-923.94117533,0.00037996,4]
[312089888,1705609838249,-1735.58180168,0.00037996,4]
[312089890,1705609838258,-155.00310006,0.00037996,4]
[312089892,1705609838267,-522.57590805,0.00037996,4]
[312089894,1705609838276,-721.33834789,0.00037996,2]
[312089896,1705609838286,-156.41283895,0.00037996,4]
[312089897,1705609838295,-2071.67545931,0.00037996,4]
[312089899,1705609838304,-531.63445466,0.00037996,4]
[312089900,1705609838313,-701.95047309,0.00037996,4]
[312089902,1705609838322,-160.22604488,0.00037996,4]
[312089903,1705609838332,-156.20759517,0.00037996,4]
[312089904,1705609838341,-155.82500385,0.00037996,2]
[312089905,1705609838350,-406.64765626,0.00037996,4]
[312089907,1705609838360,-9256.92805084,0.00037996,4]
[312089909,1705609838368,-154.9690062,0.00037996,4]
[312089911,1705609838378,-221.06387007,0.00037996,4]
[312089913,1705609838387,-319.0046286,0.00037996,4]
[312089915,1705609838397,-164.13059612,0.00037996,4]
[312089917,1705609838407,-159.61834637,0.00037996,4]
[312089919,1705609838416,-285.86450988,0.00037996,4]
[312089921,1705609838425,-554.91533247,0.00037996,4]
[312089923,1705609838434,-688.82709207,0.00037996,4]
[312089925,1705609838443,-361.23328326,0.00037996,2]
[312089927,1705609838452,-294.63708493,0.00037996,4]
[312089929,1705609838462,-1196.96135251,0.00037996,4]
[312089931,1705609838471,-275.67908944,0.00037996,4]
[312089933,1705609838481,-155.29532475,0.00037996,4]
[312089935,1705609838490,-640.55202948,0.00037996,4]
[312089937,1705609838500,-259.65976003,0.00037996,4]
[312089939,1705609838509,-49001.43341778,0.00037996,10]
[312089941,1705609838518,-873.68475195,0.00037997,4]
[312089943,1705609838527,-15988.18118084,0.00037997,4]
[312089945,1705609838537,-500.0,0.00037997,2]
[312089947,1705609838546,-287.38696917,0.00037998,3]
[312089949,1705609838555,-79184.70348364,0.00037998,20]
[312089951,1705609838564,-155.4318566,0.00037998,4]
[312089953,1705609838573,-328.54634455,0.00037998,4]
[312089955,1705609838582,-20882.03797315,0.00037998,2]
[312089957,1705609838591,-471.33694125,0.00037999,2]
[312089959,1705609838600,-500.0,0.00037999,4]
[312089961,1705609838609,-500.0,0.00037999,4]
[312089963,1705609838619,-500.0,0.00037999,4]
[312089965,1705609838628,-434.00164402,0.00037999,4]
[312089967,1705609838637,-500.0,0.00037999,4]
[312089969,1705609838648,-294.59443179,0.00037999,4]
[312089971,1705609838657,-500.0,0.00037999,4]
[312089973,1705609838666,-165.21723983,0.00037999,4]
[312089975,1705609838675,-594.09996462,0.00037999,4]
[312089977,1705609838684,-581.65879242,0.00037999,4]
[312089979,1705609838693,-443.74335192,0.00037999,4]
[312089981,1705609838703,-500.0,0.00037999,4]
[312089983,1705609838712,-500.0,0.00037999,4]
[312089985,1705609838723,-500.0,0.00037999,4]
[312089987,1705609838733,-500.0,0.00037999,4]
[312089989,1705609838742,-500.0,0.00037999,4]
[312089991,1705609838751,-500.0,0.00037999,7]
[312089993,1705609838760,-373.03080933,0.00037999,7]
[312089995,1705609838772,-187.16722562,0.00037999,7]
[312089997,1705609838782,-551.87305057,0.00037999,7]
[312089999,1705609838792,-500.0,0.00037999,7]
[312090001,1705609838801,-500.0,0.00037999,7]
[312090003,1705609838809,-500.0,0.00037999,7]
[312090005,1705609838820,-342227.43641257,0.00038,4]
[312090007,1705609838829,-3184.89020531,0.00038,7]
[312090017,1705609838924,-154.95351395,0.00038,2]
[312090019,1705609838935,-155.0,0.0003837,2]
[312090021,1705609838944,-2137.88596785,0.000385,4]
[312090023,1705609838954,-155.79751343,0.00038932,2]
[312090025,1705609838963,-154.26436595,0.00039155,7]
[312090027,1705609838972,-1000.0,0.00039479,10]
[312090029,1705609838981,-5000.0,0.00039722,7]
[312090031,1705609838992,-5000.0,0.00039722,7]
[312090033,1705609839001,-5000.0,0.00039734,7]
[312090035,1705609839011,-5000.0,0.00039793,4]
[312090037,1705609839021,-1045.84040761,0.00039899,2]
[312090039,1705609839031,-391.0,0.00039927,30]
[312090041,1705609839054,-155.79751343,0.00039963,2]
[312090043,1705609839076,-4037.37988696,0.0003999,4]
[312090045,1705609839101,-154.95351395,0.0004,4]
[312090047,1705609839126,-1599.63436256,0.0004,4]
[312090049,1705609839155,-900.0,0.0004,30]
[312090051,1705609839178,-344.58931583,0.00040271,4]
[312090054,1705609839195,-154.26436595,0.0004034,30]
[312090055,1705609839205,-22567.71940408,0.00040682,4]
[312090057,1705609839214,-2199.288005,0.000409,3]
[312090059,1705609839223,-500.0,0.00040909,7]
[312090061,1705609839233,-399.1303439,0.00040909,7]
[312090063,1705609839242,-500.0,0.00040909,7]
[312090065,1705609839251,-500.0,0.00040909,7]
[312090067,1705609839261,-500.0,0.00040909,7]
[312090069,1705609839270,-500.0,0.00040909,7]
[312090071,1705609839279,-311.24409431,0.00040909,7]
[312090073,1705609839288,-500.0,0.00040909,7]
[312090075,1705609839297,-582.80751394,0.00040909,7]
[312090077,1705609839307,-195.57497346,0.00040909,7]
[312090079,1705609839316,-500.0,0.00040909,7]
[312090081,1705609839326,-161.69,0.00040909,2]
[312090083,1705609839335,-207729.00196647,0.0004091,2]
[312090086,1705609839348,-1513.09705288,0.0004091,2]
[312090088,1705609839359,-11176.77131466,0.0004091,2]
[312090090,1705609839370,-1888.21337137,0.0004091,2]
[312090092,1705609839381,-53692.91629462,0.0004091,2]
[312090094,1705609839392,-2682.46912205,0.00040968,10]
[312090097,1705609839403,-2682.46912205,0.00040974,10]
[312090099,1705609839413,-2682.46912205,0.00040977,10]
[312090100,1705609839422,-2682.46912205,0.00040979,10]
[312090102,1705609839431,-151.0,0.0004099,21]
[312090104,1705609839441,-155.79751343,0.00040995,2]
[312090106,1705609839450,-150.0,0.00041,34]
[312090108,1705609839459,-4606.0,0.00041,15]
[312090110,1705609839469,-171.0,0.00041,14]
[312090112,1705609839479,-167.38490318,0.0004101,4]
[312090114,1705609839488,-1275.00871977,0.00041014,30]
[312090116,1705609839498,-151.0,0.00041071,21]
[312090118,1705609839508,-208.66601562,0.00041093,4]
[312090120,1705609839517,-426.28955192,0.00041094,30]
[312090122,1705609839526,-500.0,0.00041095,30]
[312090124,1705609839535,-500.0,0.00041095,30]
[312090126,1705609839545,-335.15885197,0.00041095,30]
[312090128,1705609839554,-500.0,0.00041095,30]
[312090130,1705609839564,-397.05815762,0.00041095,30]
[312090132,1705609839574,-500.0,0.00041095,7]
[312090134,1705609839584,-500.0,0.00041095,30]
[312090136,1705609839595,-500.0,0.00041095,30]
[312090138,1705609839604,-795.24,0.00041095,30]
[312090140,1705609839614,-500.0,0.00041095,30]
[312090142,1705609839624,-500.0,0.00041095,30]
[312090144,1705609839634,-459.27786591,0.00041095,30]
[312090146,1705609839643,-500.0,0.00041095,30]
[312090148,1705609839658,-505.76247467,0.00041095,30]
[312090150,1705609839668,-500.0,0.00041095,30]
[312090152,1705609839677,-500.0,0.00041095,30]
[312090154,1705609839687,-567.15,0.00041095,30]
[312090156,1705609839697,-500.0,0.00041095,30]
[312090158,1705609839706,-496.84283628,0.00041095,30]
[312090160,1705609839716,-509.35275447,0.00041095,30]
[312090162,1705609839729,-500.0,0.00041095,30]
[312090164,1705609839739,-200.0,0.00041095,30]
[312090166,1705609839748,-500.0,0.00041095,30]
[312090168,1705609839758,-500.0,0.00041095,30]
[312090170,1705609839769,-903.86,0.00041095,30]
[312090172,1705609839781,-500.0,0.00041095,30]
[312090174,1705609839791,-500.0,0.00041095,30]
[312090177,1705609839801,-500.0,0.00041095,30]
[312090179,1705609839812,-586.68,0.00041095,14]
[312090181,1705609839822,-500.0,0.00041095,30]
[312090183,1705609839832,-500.0,0.00041095,30]
[312090185,1705609839842,-500.0,0.00041095,30]
[312090187,1705609839853,-510.0438291,0.00041095,30]
[312090189,1705609839864,-500.0,0.00041095,30]
[312090190,1705609839874,-500.0,0.00041095,30]
[312090193,1705609839885,-418.32494255,0.00041095,30]
[312090194,1705609839895,-500.0,0.00041095,30]
[312090196,1705609839909,-500.0,0.00041095,30]
[312090199,1705609839918,-500.0,0.00041095,30]
[312090200,1705609839927,-500.0,0.00041095,30]
[312090202,1705609839937,-1437.2,0.00041095,30]
[312090204,1705609839948,-537.2097757,0.00041095,30]
[312090206,1705609839957,-500.0,0.00041095,30]
[312090208,1705609839966,-500.0,0.00041095,30]
[312090210,1705609839975,-506.63666637,0.00041095,30]
[312090212,1705609839985,-507.9691063,0.00041095,30]
[312090214,1705609839995,-500.0,0.00041095,30]
[312090216,1705609840006,-500.0,0.00041095,30]
[312090218,1705609840016,-500.0,0.00041095,30]
[312090220,1705609840025,-500.0,0.00041095,30]
[312090222,1705609840036,-233.06320751,0.00041095,30]
[312090224,1705609840045,-500.0,0.00041095,30]
[312090226,1705609840055,-500.0,0.00041095,30]
[312090228,1705609840064,-500.0,0.00041095,30]
[312090230,1705609840074,-500.0,0.00041095,30]
[312090232,1705609840084,-500.0,0.00041095,30]
[312090234,1705609840093,-500.0,0.00041095,30]
[312090236,1705609840104,-614.73157338,0.00041095,30]
[312090238,1705609840114,-500.0,0.00041095,30]
[312090241,1705609840123,-522.07,0.00041095,30]
[312090242,1705609840133,-500.0,0.00041095,30]
[312090244,1705609840142,-502.96447262,0.00041095,30]
[312090246,1705609840156,-500.0,0.00041095,30]
[312090248,1705609840165,-150.0,0.00041095,30]
[312090250,1705609840174,-500.0,0.00041095,30]
[312090252,1705609840183,-500.0,0.00041095,30]
[312090254,1705609840193,-504.17,0.00041095,30]
[312090257,1705609840202,-500.0,0.00041095,30]
[312090258,1705609840211,-500.0,0.00041095,30]
[312090260,1705609840221,-500.0,0.00041095,30]
[312090262,1705609840230,-504.75360174,0.00041095,30]
[312090264,1705609840239,-500.0,0.00041095,30]
[312090266,1705609840248,-500.0,0.00041095,30]
[312090268,1705609840256,-500.0,0.00041095,30]
[312090270,1705609840265,-511.13090132,0.00041095,30]
[312090272,1705609840274,-500.0,0.00041095,30]
[312090274,1705609840283,-154.6339301,0.00041095,7]
[312090276,1705609840292,-500.0,0.00041095,30]
[312090278,1705609840301,-500.0,0.00041095,30]
[312090280,1705609840310,-500.0,0.00041095,30]
[312090282,1705609840320,-500.0,0.00041095,30]
[312090284,1705609840329,-500.0,0.00041095,30]
[312090286,1705609840338,-529.01,0.00041095,30]
[312090288,1705609840347,-500.0,0.00041095,30]
[312090291,1705609840358,-194.14476077,0.00041095,30]
[312090292,1705609840367,-997.33,0.00041095,30]
[312090295,1705609840376,-507.39670889,0.00041095,30]
[312090297,1705609840386,-500.0,0.00041095,30]
[312090299,1705609840399,-500.0,0.00041095,30]
[312090301,1705609840411,-500.0,0.00041095,30]
[312090302,1705609840420,-500.0,0.00041095,30]
[312090304,1705609840429,-2380.61,0.00041095,30]
[312090306,1705609840439,-500.0,0.00041095,30]
[312090308,1705609840448,-500.0,0.00041095,30]
[312090310,1705609840457,-2014.98,0.00041095,30]
[312090312,1705609840466,-500.0,0.00041095,30]
[312090314,1705609840475,-500.0,0.00041095,30]
[312090316,1705609840484,-500.0,0.00041095,30]
[312090318,1705609840493,-500.0,0.00041095,30]
[312090320,1705609840502,-1153.77,0.00041095,30]
[312090322,1705609840511,-1961.85,0.00041095,30]
[312090324,1705609840521,-530.26,0.00041095,30]
[312090326,1705609840530,-421.79829216,0.00041095,30]
[312090328,1705609840539,-509.08441502,0.00041095,30]
[312090330,1705609840548,-500.0,0.00041095,30]
[312090332,1705609840557,-941.51,0.00041095,30]
[312090334,1705609840566,-500.0,0.00041095,30]
[312090336,1705609840579,-2738.75,0.00041095,30]
[312090338,1705609840588,-4696.68,0.00041095,30]
[312090341,1705609840598,-500.0,0.00041095,30]
[312090343,1705609840607,-500.0,0.00041095,30]
[312090344,1705609840616,-500.0,0.00041095,30]
[312090346,1705609840625,-500.0,0.00041095,30]
[312090349,1705609840635,-2454.9,0.00041095,30]
[312090350,1705609840644,-694.75,0.00041095,30]
[312090352,1705609840655,-500.0,0.00041095,30]
[312090354,1705609840664,-4751.81,0.00041095,30]
[312090356,1705609840673,-503.92123215,0.00041095,30]
[312090358,1705609840682,-20587.04,0.00041095,14]
[312090360,1705609840690,-500.0,0.00041095,30]
[312090362,1705609840699,-907.43,0.00041095,30]
[312090364,1705609840708,-500.0,0.00041095,30]
[312090366,1705609840717,-500.0,0.00041095,30]
[312090368,1705609840729,-1314.82,0.00041095,30]
[312090370,1705609840739,-502.75094776,0.00041095,7]
[312090372,1705609840748,-500.0,0.00041095,30]
[312090374,1705609840757,-514.68968925,0.00041095,30]
[312090376,1705609840767,-604.78,0.00041095,30]
[312090378,1705609840779,-407.85939628,0.00041095,30]
[312090380,1705609840788,-500.0,0.00041095,2]
[312090382,1705609840797,-5840.22,0.00041095,30]
[312090384,1705609840806,-500.0,0.00041095,30]
[312090386,1705609840815,-509.24443762,0.00041095,30]
[312090388,1705609840825,-12819.95,0.00041095,30]
[312090390,1705609840834,-5328.5,0.00041095,30]
[312090392,1705609840844,-885.11,0.00041095,30]
[312090394,1705609840855,-4165.65,0.00041095,30]
[312090396,1705609840866,-506.38981533,0.00041095,30]
[312090398,1705609840875,-1719.38,0.00041095,30]
[312090400,1705609840884,-1286.62,0.00041095,30]
[312090402,1705609840893,-500.0,0.00041095,20]
[312090404,1705609840906,-1016.47,0.00041095,30]
[312090406,1705609840916,-505.15966689,0.00041095,30]
[312090408,1705609840925,-500.0,0.00041095,5]
[312090410,1705609840934,-500.0,0.00041095,30]
[312090412,1705609840944,-1030.76,0.00041095,30]
[312090414,1705609840954,-500.0,0.00041095,30]
[312090420,1705609841034,-500.0,0.00041095,30]
[312090421,1705609841044,-500.0,0.00041095,30]
[312090422,1705609841053,-337.80225645,0.00041095,30]
[312090423,1705609841064,-736.15,0.00041095,30]
[312090424,1705609841073,-500.0,0.00041095,30]
[312090425,1705609841083,-506.3,0.00041095,30]
[312090426,1705609841092,-500.0,0.00041095,30]
[312090427,1705609841101,-283.6380436,0.00041095,30]
[312090428,1705609841110,-500.0,0.00041095,30]
[312090429,1705609841120,-500.0,0.00041095,30]
[312090430,1705609841129,-576.06013313,0.00041095,30]
[312090431,1705609841139,-500.0,0.00041095,30]
[312090432,1705609841150,-288.92660725,0.00041095,30]
[312090433,1705609841159,-500.0,0.00041095,30]
[312090434,1705609841168,-500.0,0.00041095,30]
[312090435,1705609841177,-235.1436002,0.00041095,30]
[312090436,1705609841186,-507.04774673,0.00041095,30]
[312090437,1705609841196,-500.0,0.00041095,30]
[312090438,1705609841205,-1777.03,0.00041095,30]
[312090440,1705609841215,-742.83,0.00041095,30]
[312090441,1705609841224,-500.0,0.00041095,30]
[312090442,1705609841233,-500.0,0.00041095,30]
[312090443,1705609841243,-574.99,0.00041095,30]
[312090445,1705609841252,-1475.46,0.00041095,30]
[312090446,1705609841261,-500.0,0.00041095,30]
[312090447,1705609841271,-2682.48,0.00041095,30]
[312090448,1705609841280,-950.0,0.00041095,2]
[312090449,1705609841290,-500.0,0.00041095,2]
[312090450,1705609841299,-500.0,0.00041095,30]
[312090451,1705609841308,-500.0,0.00041095,2]
[312090452,1705609841317,-509.96,0.00041095,30]
[312090453,1705609841326,-445.539948,0.00041095,30]
[312090454,1705609841336,-2183.98,0.00041095,30]
[312090455,1705609841345,-2785.85,0.00041095,30]
[312090456,1705609841355,-536.8,0.00041095,30]
[312090457,1705609841365,-151.0,0.00041153,21]
[312090458,1705609841374,-151.0,0.00041234,21]
[312090459,1705609841384,-38500.84059845,0.00041269,5]
[312090460,1705609841394,-638.44205499,0.00041287,15]
[312090461,1705609841405,-151.0,0.00041315,21]
[312090463,1705609841414,-500.0,0.00041369,30]
[312090465,1705609841422,-500.0,0.00041369,30]
[312090467,1705609841431,-500.0,0.00041369,7]
[312090468,1705609841440,-500.0,0.00041369,30]
[312090469,1705609841449,-500.0,0.00041369,30]
[312090470,1705609841459,-795.24,0.00041369,30]
[312090471,1705609841468,-500.0,0.00041369,30]
[312090472,1705609841477,-517.44050524,0.00041369,30]
[312090473,1705609841486,-500.0,0.00041369,30]
[312090474,1705609841495,-500.0,0.00041369,30]
[312090475,1705609841504,-467.06714814,0.00041369,30]
[312090476,1705609841514,-567.15,0.00041369,30]
[312090477,1705609841523,-500.0,0.00041369,30]
[312090478,1705609841532,-500.0,0.00041369,30]
[312090479,1705609841541,-500.0,0.00041369,30]
[312090480,1705609841550,-500.0,0.00041369,30]
[312090481,1705609841560,-903.86,0.00041369,30]
[312090482,1705609841569,-500.0,0.00041369,30]
[312090483,1705609841578,-500.0,0.00041369,30]
[312090484,1705609841588,-500.0,0.00041369,30]
[312090485,1705609841597,-586.68,0.00041369,14]
[312090486,1705609841607,-500.0,0.00041369,30]
[312090487,1705609841618,-500.0,0.00041369,30]
[312090488,1705609841628,-500.0,0.00041369,30]
[312090489,1705609841639,-500.0,0.00041369,30]
[312090490,1705609841652,-512.56470949,0.00041369,30]
[312090491,1705609841662,-595.45940406,0.00041369,30]
[312090492,1705609841671,-500.0,0.00041369,30]
[312090493,1705609841681,-500.0,0.00041369,30]
[312090494,1705609841690,-1437.2,0.00041369,30]
[312090495,1705609841700,-500.0,0.00041369,30]
[312090496,1705609841709,-500.0,0.00041369,30]
[312090497,1705609841718,-500.0,0.00041369,30]
[312090498,1705609841731,-500.0,0.00041369,30]
[312090499,1705609841741,-500.0,0.00041369,30]
[312090500,1705609841750,-500.0,0.00041369,30]
[312090501,1705609841759,-500.0,0.00041369,30]
[312090502,1705609841773,-500.0,0.00041369,30]
[312090503,1705609841784,-500.0,0.00041369,30]
[312090504,1705609841793,-500.0,0.00041369,30]
[312090505,1705609841803,-500.0,0.00041369,30]
[312090506,1705609841813,-500.0,0.00041369,30]
[312090507,1705609841823,-500.0,0.00041369,30]
[312090508,1705609841832,-522.07,0.00041369,30]
[312090509,1705609841842,-500.0,0.00041369,30]
[312090510,1705609841853,-500.0,0.00041369,30]
[312090511,1705609841863,-150.0,0.00041369,30]
[312090512,1705609841873,-500.0,0.00041369,30]
[312090513,1705609841883,-500.0,0.00041369,30]
[312090514,1705609841892,-504.17,0.00041369,30]
[312090515,1705609841907,-500.0,0.00041369,30]
[312090516,1705609841916,-500.0,0.00041369,30]
[312090517,1705609841926,-500.0,0.00041369,30]
[312090518,1705609841935,-464.18745564,0.00041369,30]
[312090519,1705609841944,-500.0,0.00041369,30]
[312090520,1705609841953,-500.0,0.00041369,30]
[312090521,1705609841962,-514.92216763,0.00041369,30]
[312090522,1705609841971,-500.0,0.00041369,30]
[312090523,1705609841979,-500.0,0.00041369,30]
[312090524,1705609841988,-500.0,0.00041369,30]
[312090525,1705609841998,-500.0,0.00041369,30]
[312090526,1705609842007,-506.1250893,0.00041369,30]
[312090527,1705609842017,-529.01,0.00041369,30]
[312090528,1705609842026,-500.0,0.00041369,30]
[312090529,1705609842036,-997.33,0.00041369,30]
[312090530,1705609842045,-500.0,0.00041369,30]
[312090531,1705609842054,-500.0,0.00041369,30]
[312090532,1705609842064,-500.0,0.00041369,30]
[312090533,1705609842073,-500.0,0.00041369,30]
[312090534,1705609842083,-2380.61,0.00041369,30]
[312090535,1705609842092,-500.0,0.00041369,30]
[312090536,1705609842103,-500.0,0.00041369,30]
[312090537,1705609842113,-2014.98,0.00041369,30]
[312090538,1705609842123,-500.0,0.00041369,30]
[312090539,1705609842132,-500.0,0.00041369,30]
[312090540,1705609842141,-500.0,0.00041369,30]
[312090541,1705609842154,-500.0,0.00041369,30]
[312090542,1705609842163,-1153.77,0.00041369,30]
[312090543,1705609842173,-1961.85,0.00041369,30]
[312090544,1705609842183,-530.26,0.00041369,30]
[312090545,1705609842192,-502.8011451,0.00041369,30]
[312090546,1705609842202,-941.51,0.00041369,30]
[312090547,1705609842212,-500.0,0.00041369,30]
[312090548,1705609842221,-2738.75,0.00041369,30]
[312090549,1705609842230,-4696.68,0.00041369,30]
[312090550,1705609842239,-532.60344445,0.00041369,30]
[312090551,1705609842249,-631.62586555,0.00041369,30]
[312090552,1705609842259,-500.0,0.00041369,30]
[312090553,1705609842268,-500.0,0.00041369,30]
[312090554,1705609842278,-2454.9,0.00041369,30]
[312090555,1705609842287,-694.75,0.00041369,30]
[312090556,1705609842296,-500.0,0.00041369,30]
[312090557,1705609842305,-4751.81,0.00041369,30]
[312090558,1705609842314,-20587.04,0.00041369,14]
[312090559,1705609842323,-500.0,0.00041369,30]
[312090560,1705609842333,-907.43,0.00041369,30]
[312090561,1705609842342,-500.0,0.00041369,30]
[312090562,1705609842351,-1314.82,0.00041369,30]
[312090563,1705609842360,-500.0,0.00041369,30]
[312090564,1705609842369,-500.0,0.00041369,30]
[312090565,1705609842379,-604.78,0.00041369,30]
[312090566,1705609842388,-500.0,0.00041369,2]
[312090567,1705609842399,-5840.22,0.00041369,30]
[312090568,1705609842409,-521.77890812,0.00041369,30]
[312090569,1705609842418,-12819.95,0.00041369,30]
[312090570,1705609842427,-5328.5,0.00041369,30]
[312090571,1705609842437,-885.11,0.00041369,30]
[312090572,1705609842447,-4165.65,0.00041369,30]
[312090573,1705609842456,-1719.38,0.00041369,30]
[312090574,1705609842465,-1286.62,0.00041369,30]
[312090575,1705609842475,-500.0,0.00041369,20]
[312090576,1705609842484,-1016.47,0.00041369,30]
[312090577,1705609842494,-504.36618762,0.00041369,5]
[312090578,1705609842503,-1030.76,0.00041369,30]
[312090579,1705609842512,-500.0,0.00041369,30]
[312090580,1705609842522,-500.0,0.00041369,30]
[312090581,1705609842531,-500.0,0.00041369,30]
[312090582,1705609842540,-736.15,0.00041369,30]
[312090584,1705609842550,-500.0,0.00041369,30]
[312090586,1705609842559,-506.3,0.00041369,30]
[312090588,1705609842568,-500.0,0.00041369,30]
[312090589,1705609842578,-590.42451607,0.00041369,30]
[312090590,1705609842587,-500.0,0.00041369,30]
[312090591,1705609842596,-500.0,0.00041369,30]
[312090593,1705609842606,-500.0,0.00041369,30]
[312090595,1705609842616,-500.0,0.00041369,30]
[312090597,1705609842626,-500.0,0.00041369,30]
[312090599,1705609842636,-1777.03,0.00041369,30]
[312090601,1705609842648,-742.83,0.00041369,30]
[312090603,1705609842657,-491.01870315,0.00041369,30]
[312090606,1705609842667,-500.0,0.00041369,30]
[312090609,1705609842676,-574.99,0.00041369,30]
[312090612,1705609842686,-1475.46,0.00041369,30]
[312090615,1705609842696,-500.0,0.00041369,30]
[312090619,1705609842706,-2682.48,0.00041369,30]
[312090622,1705609842716,-500.0,0.00041369,2]
[312090626,1705609842730,-500.0,0.00041369,30]
[312090631,1705609842739,-509.96,0.00041369,30]
[312090636,1705609842749,-500.0,0.00041369,2]
[312090640,1705609842759,-2183.98,0.00041369,30]
[312090643,1705609842773,-2785.85,0.00041369,30]
[312090646,1705609842783,-536.8,0.00041369,30]
[312090649,1705609842793,-171.0,0.0004137,90]
[312090652,1705609842803,-151.0,0.00041396,21]
[312090662,1705609842887,-200.41,0.000414,4]
[312090663,1705609842898,-4999.99,0.00041416,2]
[312090665,1705609842912,-5000.0,0.00041443,2]
[312090667,1705609842922,-151.0,0.00041478,21]
[312090668,1705609842931,-777.0,0.000415,4]